[Event "Titled Tuesday Blitz November 29 Late 2022"]
[White "Young, Ryan"]
[Black "Burke, Paul"]
[WhiteFideId "2049945"]
[BlackFideId "2605767"]
[WhiteElo "2284"]
[BlackElo "1920"]
[Result "1-0"]
[Round "06"]
[TimeControl "180+1"]
[Date "2022.11.30"]
[WhiteClock "0:00:34"]
[BlackClock "0:00:53"]

1. e4 {[%clk 0:03:00]}  e5 {[%clk 0:02:58]} 2. Nf3 {[%clk 0:03:00]}  Nc6 {[%clk 0:02:58]} 3. d4 {[%clk 0:03:00]}  exd4 {[%clk 0:02:57]} 4. Nxd4 {[%clk 0:03:01]}  Be7 {[%clk 0:02:58]} 5. c4 {[%clk 0:02:47]}  d6 {[%clk 0:02:56]} 6. Nc3 {[%clk 0:02:46]}  Nf6 {[%clk 0:02:56]} 7. Be3 {[%clk 0:02:46]}  O-O {[%clk 0:02:56]} 8. Be2 {[%clk 0:02:46]}  a6 {[%clk 0:02:55]} 9. O-O {[%clk 0:02:46]}  Nxd4 {[%clk 0:02:33]} 10. Bxd4 {[%clk 0:02:45]}  c6 {[%clk 0:02:33]} 11. Bf3 {[%clk 0:02:34]}  Be6 {[%clk 0:02:32]} 12. b3 {[%clk 0:02:34]}  Nd7 {[%clk 0:02:14]} 13. Qd3 {[%clk 0:02:21]}  Ne5 {[%clk 0:02:10]} 14. Qe3 {[%clk 0:02:12]}  Nxf3+ {[%clk 0:02:09]} 15. Qxf3 {[%clk 0:02:12]}  Bf6 {[%clk 0:02:07]} 16. Rad1 {[%clk 0:02:10]}  Bxd4 {[%clk 0:02:06]} 17. Rxd4 {[%clk 0:02:10]}  Qc7 {[%clk 0:02:00]} 18. Rfd1 {[%clk 0:02:10]}  Rad8 {[%clk 0:02:00]} 19. Qd3 {[%clk 0:02:04]}  f5 {[%clk 0:01:52]} 20. Rxd6 {[%clk 0:01:56]}  Rxd6 {[%clk 0:01:47]} 21. Qxd6 {[%clk 0:01:55]}  Qxd6 {[%clk 0:01:46]} 22. Rxd6 {[%clk 0:01:56]}  Bc8 {[%clk 0:01:45]} 23. e5 {[%clk 0:01:48]}  f4 {[%clk 0:01:43]} 24. Ne4 {[%clk 0:01:38]}  f3 {[%clk 0:01:32]} 25. gxf3 {[%clk 0:01:34]}  Bf5 {[%clk 0:01:29]} 26. Nc5 {[%clk 0:01:31]}  Bb1 {[%clk 0:01:15]} 27. e6 {[%clk 0:01:25]}  Bxa2 {[%clk 0:01:14]} 28. Rd7 {[%clk 0:00:46]}  b6 {[%clk 0:01:08]} 29. Nb7 {[%clk 0:00:34]}  Bxb3 {[%clk 0:01:05]} 30. Nd6 {[%clk 0:00:34]}  Bxc4 {[%clk 0:00:53]} 31. e7 {[%clk 0:00:34]} 1-0


[Site "https://www.chess.com"]

[Event "Titled Tuesday Blitz November 29 Late 2022"]
[White "Zajic, Milan"]
[Black "Sadhwani, Raunak"]
[WhiteFideId "912336"]
[BlackFideId "35093487"]
[WhiteElo "2445"]
[BlackElo "2656"]
[Result "0-1"]
[Round "06"]
[TimeControl "180+1"]
[Date "2022.11.30"]
[WhiteClock "0:00:19"]
[BlackClock "0:00:43"]

1. e4 {[%clk 0:02:43]}  e5 {[%clk 0:02:59]} 2. Nf3 {[%clk 0:02:41]}  Nc6 {[%clk 0:02:59]} 3. Bb5 {[%clk 0:02:37]}  Nge7 {[%clk 0:02:58]} 4. Nc3 {[%clk 0:02:35]}  Ng6 {[%clk 0:02:58]} 5. h4 {[%clk 0:02:33]}  Nd4 {[%clk 0:02:56]} 6. h5 {[%clk 0:02:29]}  Nf4 {[%clk 0:02:48]} 7. g3 {[%clk 0:02:21]}  Nxf3+ {[%clk 0:02:23]} 8. Qxf3 {[%clk 0:02:21]}  Ne6 {[%clk 0:02:24]} 9. Bc4 {[%clk 0:02:18]}  d6 {[%clk 0:02:23]} 10. d3 {[%clk 0:02:16]}  c6 {[%clk 0:02:23]} 11. Be3 {[%clk 0:02:14]}  Be7 {[%clk 0:02:21]} 12. a3 {[%clk 0:02:10]}  b5 {[%clk 0:02:21]} 13. Bb3 {[%clk 0:02:09]}  a5 {[%clk 0:02:21]} 14. a4 {[%clk 0:01:52]}  b4 {[%clk 0:02:20]} 15. Ne2 {[%clk 0:01:52]}  O-O {[%clk 0:02:20]} 16. O-O-O {[%clk 0:01:48]}  c5 {[%clk 0:01:49]} 17. h6 {[%clk 0:01:45]}  g6 {[%clk 0:01:49]} 18. Qg2 {[%clk 0:01:36]}  Nd4 {[%clk 0:01:49]} 19. Nxd4 {[%clk 0:01:36]}  cxd4 {[%clk 0:01:50]} 20. Bd2 {[%clk 0:01:36]}  Be6 {[%clk 0:01:51]} 21. Bc4 {[%clk 0:01:34]}  Bxc4 {[%clk 0:01:49]} 22. dxc4 {[%clk 0:01:34]}  b3 {[%clk 0:01:49]} 23. cxb3 {[%clk 0:01:34]}  Rb8 {[%clk 0:01:48]} 24. Qf3 {[%clk 0:01:35]}  Qb6 {[%clk 0:01:33]} 25. Kc2 {[%clk 0:01:29]}  Qc6 {[%clk 0:01:33]} 26. Rhe1 {[%clk 0:01:25]}  Rb7 {[%clk 0:01:24]} 27. Bxa5 {[%clk 0:01:04]}  Ra8 {[%clk 0:01:24]} 28. b4 {[%clk 0:01:02]}  Qxa4+ {[%clk 0:01:05]} 29. Kb1 {[%clk 0:01:01]}  d5 {[%clk 0:01:05]} 30. c5 {[%clk 0:00:37]}  Bxc5 {[%clk 0:00:55]} 31. Qf6 {[%clk 0:00:31]}  Bf8 {[%clk 0:00:55]} 32. Qxe5 {[%clk 0:00:28]}  Rxb4 {[%clk 0:00:43]} 33. Bxb4 {[%clk 0:00:27]}  Qa2+ {[%clk 0:00:43]} 34. Kc2 {[%clk 0:00:27]}  Rc8+ {[%clk 0:00:43]} 35. Bc3 {[%clk 0:00:19]}  Rxc3+ {[%clk 0:00:43]} 0-1


[Site "https://www.chess.com"]

[Event "Titled Tuesday Blitz November 29 Late 2022"]
[White "Zhigalko, Sergei"]
[Black "Annaberdiyev, Babageldi"]
[WhiteFideId "13502956"]
[BlackFideId "14000385"]
[WhiteElo "2662"]
[BlackElo "2332"]
[Result "1-0"]
[Round "06"]
[TimeControl "180+1"]
[Date "2022.11.30"]
[WhiteClock "0:00:04"]
[BlackClock "0:00:12"]

1. e4 {[%clk 0:03:00]}  e6 {[%clk 0:03:00]} 2. d4 {[%clk 0:03:00]}  d5 {[%clk 0:03:01]} 3. e5 {[%clk 0:03:01]}  c5 {[%clk 0:03:00]} 4. c3 {[%clk 0:03:02]}  Nc6 {[%clk 0:03:01]} 5. Nf3 {[%clk 0:03:02]}  Qb6 {[%clk 0:03:02]} 6. Bd3 {[%clk 0:03:02]}  cxd4 {[%clk 0:03:00]} 7. O-O {[%clk 0:03:00]}  Bd7 {[%clk 0:02:47]} 8. Re1 {[%clk 0:02:59]}  Rc8 {[%clk 0:02:45]} 9. h4 {[%clk 0:02:59]}  h6 {[%clk 0:02:38]} 10. h5 {[%clk 0:02:59]}  a6 {[%clk 0:02:31]} 11. a3 {[%clk 0:02:53]}  Qa7 {[%clk 0:02:27]} 12. b4 {[%clk 0:02:48]}  dxc3 {[%clk 0:02:24]} 13. Nxc3 {[%clk 0:02:33]}  Nxb4 {[%clk 0:02:24]} 14. Be3 {[%clk 0:02:15]}  Bc5 {[%clk 0:02:01]} 15. axb4 {[%clk 0:02:07]}  Bxe3 {[%clk 0:01:59]} 16. Rxe3 {[%clk 0:01:54]}  Rxc3 {[%clk 0:01:59]} 17. b5 {[%clk 0:01:54]}  Ne7 {[%clk 0:01:55]} 18. bxa6 {[%clk 0:01:54]}  bxa6 {[%clk 0:01:54]} 19. Rxa6 {[%clk 0:01:49]}  Qb7 {[%clk 0:01:52]} 20. Qa1 {[%clk 0:01:46]}  Qb4 {[%clk 0:01:32]} 21. Ra7 {[%clk 0:01:28]}  Nc8 {[%clk 0:01:18]} 22. Rxd7 {[%clk 0:01:08]}  Kxd7 {[%clk 0:01:17]} 23. Bb5+ {[%clk 0:01:03]}  Qxb5 {[%clk 0:01:17]} 24. Rxc3 {[%clk 0:01:04]}  Qb4 {[%clk 0:01:13]} 25. Ra3 {[%clk 0:00:47]}  Rd8 {[%clk 0:01:09]} 26. Nd4 {[%clk 0:00:47]}  Ne7 {[%clk 0:01:02]} 27. Ra4 {[%clk 0:00:42]}  Qb6 {[%clk 0:01:00]} 28. Ra6 {[%clk 0:00:36]}  Qb4 {[%clk 0:00:58]} 29. Ra4 {[%clk 0:00:21]}  Qb6 {[%clk 0:00:56]} 30. Ra7+ {[%clk 0:00:05]}  Ke8 {[%clk 0:00:56]} 31. Qa3 {[%clk 0:00:03]}  Ng8 {[%clk 0:00:47]} 32. Qa4+ {[%clk 0:00:02]}  Kf8 {[%clk 0:00:45]} 33. Qa3+ {[%clk 0:00:01]}  Ke8 {[%clk 0:00:42]} 34. Qa4+ {[%clk 0:00:02]}  Kf8 {[%clk 0:00:43]} 35. Nc6 {[%clk 0:00:02]}  g5 {[%clk 0:00:19]} 36. Qa3+ {[%clk 0:00:02]}  Kg7 {[%clk 0:00:16]} 37. Nxd8 {[%clk 0:00:02]}  Qxd8 {[%clk 0:00:14]} 38. Qc5 {[%clk 0:00:03]}  Qf8 {[%clk 0:00:13]} 39. Qxf8+ {[%clk 0:00:02]}  Kxf8 {[%clk 0:00:14]} 40. Ra8+ {[%clk 0:00:03]}  Kg7 {[%clk 0:00:15]} 41. Re8 {[%clk 0:00:03]}  Kh7 {[%clk 0:00:12]} 42. g4 {[%clk 0:00:03]}  Kg7 {[%clk 0:00:12]} 43. Kg2 {[%clk 0:00:03]}  Kh7 {[%clk 0:00:13]} 44. Kg3 {[%clk 0:00:03]}  Kg7 {[%clk 0:00:13]} 45. f3 {[%clk 0:00:04]}  Kh7 {[%clk 0:00:13]} 46. Kf2 {[%clk 0:00:04]}  Kg7 {[%clk 0:00:13]} 47. Ke3 {[%clk 0:00:05]}  Kh7 {[%clk 0:00:11]} 48. Kd4 {[%clk 0:00:05]}  Kg7 {[%clk 0:00:12]} 49. Kc5 {[%clk 0:00:05]}  Kh7 {[%clk 0:00:12]} 50. Kd6 {[%clk 0:00:05]}  Kg7 {[%clk 0:00:12]} 51. Rd8 {[%clk 0:00:05]}  d4 {[%clk 0:00:10]} 52. Rb8 {[%clk 0:00:04]}  f6 {[%clk 0:00:10]} 53. Rb7+ {[%clk 0:00:04]}  Kf8 {[%clk 0:00:11]} 54. Kxe6 {[%clk 0:00:04]}  fxe5 {[%clk 0:00:11]} 55. Rb8+ {[%clk 0:00:03]}  Kg7 {[%clk 0:00:11]} 56. Rb7+ {[%clk 0:00:04]}  Kf8 {[%clk 0:00:11]} 57. Kxe5 {[%clk 0:00:04]}  d3 {[%clk 0:00:10]} 58. Rd7 {[%clk 0:00:04]}  Ne7 {[%clk 0:00:11]} 59. Rxd3 {[%clk 0:00:04]}  Nc6+ {[%clk 0:00:12]} 60. Kf6 {[%clk 0:00:04]}  Nb4 {[%clk 0:00:12]} 61. Rd8# {[%clk 0:00:04]} 1-0


[Site "https://www.chess.com"]

[Event "Titled Tuesday Blitz November 29 Late 2022"]
[White "Aghasiyev, Kamal"]
[Black "Putnam, Liam"]
[WhiteFideId "13402854"]
[BlackFideId "30938279"]
[WhiteElo "2341"]
[BlackElo "2082"]
[Result "1-0"]
[Round "07"]
[TimeControl "180+1"]
[Date "2022.11.30"]
[WhiteClock "0:00:11"]
[BlackClock "0:00:12"]

1. d4 {[%clk 0:02:59]}  Nf6 {[%clk 0:02:59]} 2. c4 {[%clk 0:02:57]}  e6 {[%clk 0:02:57]} 3. Nf3 {[%clk 0:02:57]}  Bb4+ {[%clk 0:02:44]} 4. Bd2 {[%clk 0:02:56]}  a5 {[%clk 0:02:43]} 5. g3 {[%clk 0:02:56]}  d6 {[%clk 0:02:41]} 6. Bg2 {[%clk 0:02:56]}  Nbd7 {[%clk 0:02:41]} 7. O-O {[%clk 0:02:56]}  O-O {[%clk 0:02:32]} 8. Bg5 {[%clk 0:02:55]}  a4 {[%clk 0:02:10]} 9. a3 {[%clk 0:02:53]}  Ba5 {[%clk 0:02:09]} 10. Qxa4 {[%clk 0:02:52]}  Ra6 {[%clk 0:01:53]} 11. Qc2 {[%clk 0:02:50]}  h6 {[%clk 0:01:48]} 12. Bf4 {[%clk 0:02:46]}  Bb6 {[%clk 0:01:45]} 13. Nc3 {[%clk 0:02:41]}  Qe7 {[%clk 0:01:42]} 14. Be3 {[%clk 0:02:00]}  Ng4 {[%clk 0:01:36]} 15. Bd2 {[%clk 0:02:00]}  f5 {[%clk 0:01:26]} 16. b4 {[%clk 0:01:58]}  Ngf6 {[%clk 0:01:17]} 17. c5 {[%clk 0:01:55]}  dxc5 {[%clk 0:01:12]} 18. dxc5 {[%clk 0:01:55]}  Ba7 {[%clk 0:01:10]} 19. e4 {[%clk 0:01:45]}  fxe4 {[%clk 0:00:41]} 20. Nxe4 {[%clk 0:01:44]}  e5 {[%clk 0:00:38]} 21. Bc3 {[%clk 0:01:39]}  Nxe4 {[%clk 0:00:36]} 22. Qxe4 {[%clk 0:01:39]}  Re6 {[%clk 0:00:35]} 23. Nh4 {[%clk 0:01:32]}  Qf7 {[%clk 0:00:30]} 24. Qc4 {[%clk 0:01:26]}  g5 {[%clk 0:00:24]} 25. Nf3 {[%clk 0:01:19]}  Rfe8 {[%clk 0:00:24]} 26. Nd2 {[%clk 0:01:14]}  c6 {[%clk 0:00:20]} 27. Ne4 {[%clk 0:01:13]}  Bb8 {[%clk 0:00:20]} 28. Rad1 {[%clk 0:01:12]}  Nf6 {[%clk 0:00:20]} 29. Nxf6+ {[%clk 0:01:08]}  Rxf6 {[%clk 0:00:21]} 30. Qxf7+ {[%clk 0:01:07]}  Kxf7 {[%clk 0:00:22]} 31. Be4 {[%clk 0:01:07]}  Kg7 {[%clk 0:00:19]} 32. Rd3 {[%clk 0:01:03]}  Ref8 {[%clk 0:00:19]} 33. f3 {[%clk 0:00:58]}  g4 {[%clk 0:00:18]} 34. f4 {[%clk 0:00:57]}  Kg8 {[%clk 0:00:18]} 35. Re1 {[%clk 0:00:52]}  Be6 {[%clk 0:00:11]} 36. Bg2 {[%clk 0:00:44]}  Bf5 {[%clk 0:00:10]} 37. Rdd1 {[%clk 0:00:43]}  Re6 {[%clk 0:00:10]} 38. Bxe5 {[%clk 0:00:41]}  Rfe8 {[%clk 0:00:10]} 39. Bc3 {[%clk 0:00:40]}  Bc7 {[%clk 0:00:11]} 40. Kf2 {[%clk 0:00:38]}  Ra8 {[%clk 0:00:10]} 41. Rxe6 {[%clk 0:00:37]}  Bxe6 {[%clk 0:00:11]} 42. Bb2 {[%clk 0:00:37]}  Kf7 {[%clk 0:00:11]} 43. Be4 {[%clk 0:00:36]}  Ra6 {[%clk 0:00:10]} 44. Re1 {[%clk 0:00:33]}  b6 {[%clk 0:00:10]} 45. Bg6+ {[%clk 0:00:32]}  Kxg6 {[%clk 0:00:07]} 46. Rxe6+ {[%clk 0:00:32]}  Kf5 {[%clk 0:00:06]} 47. Rxc6 {[%clk 0:00:31]}  Bd8 {[%clk 0:00:07]} 48. Ke3 {[%clk 0:00:28]}  h5 {[%clk 0:00:05]} 49. Kd3 {[%clk 0:00:27]}  h4 {[%clk 0:00:04]} 50. Kc4 {[%clk 0:00:26]}  hxg3 {[%clk 0:00:04]} 51. hxg3 {[%clk 0:00:26]}  Ra7 {[%clk 0:00:03]} 52. Rd6 {[%clk 0:00:23]}  Be7 {[%clk 0:00:03]} 53. Rd3 {[%clk 0:00:20]}  bxc5 {[%clk 0:00:02]} 54. bxc5 {[%clk 0:00:20]}  Ra5 {[%clk 0:00:03]} 55. Rd5+ {[%clk 0:00:18]}  Ke6 {[%clk 0:00:04]} 56. Re5+ {[%clk 0:00:18]}  Kf7 {[%clk 0:00:04]} 57. c6 {[%clk 0:00:13]}  Ra4+ {[%clk 0:00:05]} 58. Kb5 {[%clk 0:00:13]}  Ra8 {[%clk 0:00:05]} 59. c7 {[%clk 0:00:11]}  Bd6 {[%clk 0:00:05]} 60. Rf5+ {[%clk 0:00:11]}  Ke6 {[%clk 0:00:05]} 61. Rf6+ {[%clk 0:00:10]}  Kd7 {[%clk 0:00:06]} 62. Rxd6+ {[%clk 0:00:09]}  Kxd6 {[%clk 0:00:06]} 63. Kb6 {[%clk 0:00:08]}  Kd7 {[%clk 0:00:06]} 64. Kb7 {[%clk 0:00:06]}  Re8 {[%clk 0:00:06]} 65. a4 {[%clk 0:00:06]}  Rf8 {[%clk 0:00:03]} 66. a5 {[%clk 0:00:05]}  Rc8 {[%clk 0:00:04]} 67. Be5 {[%clk 0:00:04]}  Re8 {[%clk 0:00:04]} 68. a6 {[%clk 0:00:04]}  Rf8 {[%clk 0:00:01]} 69. a7 {[%clk 0:00:04]}  Rc8 {[%clk 0:00:01]} 70. a8=Q {[%clk 0:00:05]}  Rxa8 {[%clk 0:00:02]} 71. Kxa8 {[%clk 0:00:05]}  Kc8 {[%clk 0:00:03]} 72. Ka7 {[%clk 0:00:06]}  Kd7 {[%clk 0:00:03]} 73. Kb7 {[%clk 0:00:06]}  Ke6 {[%clk 0:00:03]} 74. c8=Q+ {[%clk 0:00:07]}  Kd5 {[%clk 0:00:04]} 75. Qxg4 {[%clk 0:00:07]}  Ke4 {[%clk 0:00:05]} 76. Qg6+ {[%clk 0:00:07]}  Kf3 {[%clk 0:00:06]} 77. f5 {[%clk 0:00:08]}  Kf2 {[%clk 0:00:06]} 78. f6 {[%clk 0:00:08]}  Kf1 {[%clk 0:00:07]} 79. g4 {[%clk 0:00:09]}  Kg2 {[%clk 0:00:08]} 80. g5 {[%clk 0:00:10]}  Kg1 {[%clk 0:00:08]} 81. Qh7 {[%clk 0:00:10]}  Kf2 {[%clk 0:00:09]} 82. f7 {[%clk 0:00:10]}  Kg2 {[%clk 0:00:10]} 83. g6 {[%clk 0:00:09]}  Kf2 {[%clk 0:00:10]} 84. g7 {[%clk 0:00:10]}  Ke1 {[%clk 0:00:11]} 85. f8=Q {[%clk 0:00:10]}  Ke2 {[%clk 0:00:12]} 86. g8=Q {[%clk 0:00:10]}  Kd2 {[%clk 0:00:12]} 87. Qh3 {[%clk 0:00:10]}  Ke2 {[%clk 0:00:13]} 88. Qgg2+ {[%clk 0:00:11]}  Ke1 {[%clk 0:00:12]} 89. Qff1# {[%clk 0:00:11]} 1-0


[Site "https://www.chess.com"]

[Event "Titled Tuesday Blitz November 29 Late 2022"]
[White "Al-Tarboush, Ward"]
[Black "Zajic, Milan"]
[WhiteFideId "7601450"]
[BlackFideId "912336"]
[WhiteElo "2273"]
[BlackElo "2445"]
[Result "0-1"]
[Round "07"]
[TimeControl "180+1"]
[Date "2022.11.30"]
[WhiteClock "0:00:04"]
[BlackClock "0:00:44"]

1. d4 {[%clk 0:03:00]}  Nf6 {[%clk 0:02:59]} 2. Nc3 {[%clk 0:03:00]}  d5 {[%clk 0:02:56]} 3. Bg5 {[%clk 0:03:00]}  c6 {[%clk 0:02:55]} 4. Nf3 {[%clk 0:02:58]}  Bf5 {[%clk 0:02:55]} 5. e3 {[%clk 0:02:59]}  Nbd7 {[%clk 0:02:55]} 6. Bd3 {[%clk 0:02:59]}  Bxd3 {[%clk 0:02:44]} 7. cxd3 {[%clk 0:03:00]}  e6 {[%clk 0:02:38]} 8. O-O {[%clk 0:03:00]}  Be7 {[%clk 0:02:38]} 9. e4 {[%clk 0:02:58]}  O-O {[%clk 0:02:37]} 10. e5 {[%clk 0:02:57]}  Ne8 {[%clk 0:02:38]} 11. Bxe7 {[%clk 0:02:57]}  Qxe7 {[%clk 0:02:39]} 12. Ne1 {[%clk 0:02:56]}  c5 {[%clk 0:02:38]} 13. dxc5 {[%clk 0:02:56]}  Qxc5 {[%clk 0:02:36]} 14. d4 {[%clk 0:02:56]}  Qb6 {[%clk 0:02:29]} 15. Qd2 {[%clk 0:02:57]}  Nc7 {[%clk 0:02:25]} 16. f4 {[%clk 0:02:57]}  Nb5 {[%clk 0:02:25]} 17. Nf3 {[%clk 0:02:56]}  Rac8 {[%clk 0:02:21]} 18. Kh1 {[%clk 0:02:10]}  Nxc3 {[%clk 0:02:18]} 19. bxc3 {[%clk 0:02:11]}  Qa5 {[%clk 0:02:19]} 20. Rac1 {[%clk 0:02:11]}  Rc6 {[%clk 0:02:18]} 21. Ng1 {[%clk 0:01:55]}  f5 {[%clk 0:02:12]} 22. Nf3 {[%clk 0:01:49]}  Rfc8 {[%clk 0:02:11]} 23. Rc2 {[%clk 0:01:36]}  Rxc3 {[%clk 0:01:56]} 24. Ng5 {[%clk 0:01:35]}  Nf8 {[%clk 0:01:54]} 25. h4 {[%clk 0:01:18]}  h6 {[%clk 0:01:47]} 26. Nxe6 {[%clk 0:00:34]}  Qa6 {[%clk 0:01:13]} 27. Rxc3 {[%clk 0:00:02]}  Qxf1+ {[%clk 0:01:11]} 28. Kh2 {[%clk 0:00:02]}  Rxc3 {[%clk 0:01:08]} 29. Qxc3 {[%clk 0:00:02]}  Nxe6 {[%clk 0:01:05]} 30. Qc8+ {[%clk 0:00:03]}  Nf8 {[%clk 0:01:01]} 31. Qxf5 {[%clk 0:00:03]}  Qf2 {[%clk 0:00:56]} 32. Qc8 {[%clk 0:00:02]}  Qxh4+ {[%clk 0:00:53]} 33. Kg1 {[%clk 0:00:03]}  Qe1+ {[%clk 0:00:51]} 34. Kh2 {[%clk 0:00:02]}  Qh4+ {[%clk 0:00:51]} 35. Kg1 {[%clk 0:00:03]}  Qxf4 {[%clk 0:00:51]} 36. e6 {[%clk 0:00:04]}  Qxd4+ {[%clk 0:00:51]} 37. Kh1 {[%clk 0:00:04]}  Qd1+ {[%clk 0:00:46]} 38. Kh2 {[%clk 0:00:03]}  Qh5+ {[%clk 0:00:46]} 39. Kg1 {[%clk 0:00:04]}  Qf5 {[%clk 0:00:44]} 0-1


[Site "https://www.chess.com"]

[Event "Titled Tuesday Blitz November 29 Late 2022"]
[White "Arbunic Castro, Giovanna"]
[Black "Floresvillar Gonzalez, Luis Migu"]
[WhiteFideId "3400549"]
[BlackFideId "5100542"]
[WhiteElo "1939"]
[BlackElo "2040"]
[Result "0-1"]
[Round "07"]
[TimeControl "180+1"]
[Date "2022.11.30"]
[WhiteClock "0:00:06"]
[BlackClock "0:00:42"]

1. e4 {[%clk 0:03:00]}  c5 {[%clk 0:02:59]} 2. g3 {[%clk 0:03:00]}  Nc6 {[%clk 0:02:58]} 3. Bg2 {[%clk 0:02:59]}  g6 {[%clk 0:02:56]} 4. Ne2 {[%clk 0:02:59]}  Bg7 {[%clk 0:02:56]} 5. c3 {[%clk 0:02:58]}  c4 {[%clk 0:02:53]} 6. b3 {[%clk 0:02:57]}  b5 {[%clk 0:02:50]} 7. a4 {[%clk 0:02:54]}  cxb3 {[%clk 0:02:29]} 8. axb5 {[%clk 0:02:52]}  Ne5 {[%clk 0:02:28]} 9. d4 {[%clk 0:02:45]}  b2 {[%clk 0:02:18]} 10. Bxb2 {[%clk 0:02:39]}  Nc4 {[%clk 0:02:18]} 11. Qb3 {[%clk 0:02:20]}  Nxb2 {[%clk 0:02:17]} 12. Qxb2 {[%clk 0:02:19]}  Bb7 {[%clk 0:02:18]} 13. O-O {[%clk 0:02:17]}  Nh6 {[%clk 0:02:16]} 14. c4 {[%clk 0:02:10]}  O-O {[%clk 0:02:15]} 15. Nbc3 {[%clk 0:02:09]}  d6 {[%clk 0:02:13]} 16. Rfc1 {[%clk 0:01:51]}  Qb6 {[%clk 0:02:11]} 17. Nd5 {[%clk 0:01:48]}  Bxd5 {[%clk 0:02:10]} 18. exd5 {[%clk 0:01:47]}  Rab8 {[%clk 0:01:55]} 19. Qa3 {[%clk 0:01:33]}  Rb7 {[%clk 0:01:52]} 20. c5 {[%clk 0:01:20]}  Qxb5 {[%clk 0:01:45]} 21. c6 {[%clk 0:01:16]}  Rc7 {[%clk 0:01:36]} 22. Qa6 {[%clk 0:01:07]}  Qb2 {[%clk 0:01:29]} 23. Rab1 {[%clk 0:00:48]}  Qd2 {[%clk 0:01:24]} 24. Rb7 {[%clk 0:00:45]}  Rfc8 {[%clk 0:01:10]} 25. Rxc7 {[%clk 0:00:35]}  Rxc7 {[%clk 0:01:09]} 26. Qb7 {[%clk 0:00:35]}  Qa5 {[%clk 0:00:59]} 27. Rb1 {[%clk 0:00:24]}  Bf6 {[%clk 0:00:54]} 28. Qb8+ {[%clk 0:00:20]}  Kg7 {[%clk 0:00:54]} 29. Rb7 {[%clk 0:00:18]}  Qe1+ {[%clk 0:00:44]} 30. Bf1 {[%clk 0:00:18]}  Rxb7 {[%clk 0:00:43]} 31. cxb7 {[%clk 0:00:17]}  Ng4 {[%clk 0:00:43]} 32. Qg8+ {[%clk 0:00:06]}  Kxg8 {[%clk 0:00:41]} 33. b8=Q+ {[%clk 0:00:06]}  Kg7 {[%clk 0:00:42]} 0-1


[Site "https://www.chess.com"]

[Event "Titled Tuesday Blitz November 29 Late 2022"]
[White "Banzea, Alexandru-Bogdan"]
[Black "Suder, Jakub"]
[WhiteFideId "1232622"]
[BlackFideId "1195310"]
[WhiteElo "2294"]
[BlackElo "2243"]
[Result "0-1"]
[Round "07"]
[TimeControl "180+1"]
[Date "2022.11.30"]
[WhiteClock "0:00:02"]
[BlackClock "0:00:17"]

1. d4 {[%clk 0:03:00]}  d5 {[%clk 0:03:00]} 2. Nf3 {[%clk 0:03:01]}  Nf6 {[%clk 0:02:59]} 3. Bf4 {[%clk 0:03:01]}  c5 {[%clk 0:02:58]} 4. e3 {[%clk 0:03:02]}  Nc6 {[%clk 0:02:58]} 5. Nbd2 {[%clk 0:03:02]}  Bg4 {[%clk 0:02:58]} 6. c3 {[%clk 0:03:02]}  cxd4 {[%clk 0:02:57]} 7. exd4 {[%clk 0:03:01]}  e6 {[%clk 0:02:57]} 8. Qb3 {[%clk 0:03:02]}  Bd6 {[%clk 0:02:56]} 9. Qxb7 {[%clk 0:02:49]}  Bxf4 {[%clk 0:02:56]} 10. Qxc6+ {[%clk 0:02:49]}  Kf8 {[%clk 0:02:56]} 11. Ne5 {[%clk 0:02:48]}  Rb8 {[%clk 0:02:34]} 12. Nb3 {[%clk 0:02:21]}  Bf5 {[%clk 0:02:22]} 13. Bd3 {[%clk 0:01:58]}  g6 {[%clk 0:02:13]} 14. Bxf5 {[%clk 0:01:52]}  gxf5 {[%clk 0:02:13]} 15. g3 {[%clk 0:01:39]}  Bxe5 {[%clk 0:01:47]} 16. dxe5 {[%clk 0:01:40]}  Nd7 {[%clk 0:01:32]} 17. f4 {[%clk 0:01:29]}  h5 {[%clk 0:01:22]} 18. O-O-O {[%clk 0:01:27]}  Qe7 {[%clk 0:00:57]} 19. h3 {[%clk 0:01:19]}  Rb6 {[%clk 0:00:47]} 20. Qa8+ {[%clk 0:01:12]}  Kg7 {[%clk 0:00:47]} 21. Qxa7 {[%clk 0:01:13]}  Rhb8 {[%clk 0:00:38]} 22. Rhg1 {[%clk 0:01:11]}  R8b7 {[%clk 0:00:37]} 23. Qa3 {[%clk 0:00:15]}  Qxa3 {[%clk 0:00:36]} 24. bxa3 {[%clk 0:00:16]}  Ra7 {[%clk 0:00:35]} 25. Kb2 {[%clk 0:00:15]}  Rba6 {[%clk 0:00:34]} 26. g4 {[%clk 0:00:15]}  hxg4 {[%clk 0:00:34]} 27. hxg4 {[%clk 0:00:16]}  fxg4 {[%clk 0:00:33]} 28. Rxg4+ {[%clk 0:00:16]}  Kf8 {[%clk 0:00:34]} 29. Rh1 {[%clk 0:00:15]}  Rxa3 {[%clk 0:00:27]} 30. Rh8+ {[%clk 0:00:15]}  Ke7 {[%clk 0:00:26]} 31. Rgg8 {[%clk 0:00:06]}  Rxa2+ {[%clk 0:00:26]} 32. Kb1 {[%clk 0:00:06]}  Nb6 {[%clk 0:00:21]} 33. Nc5 {[%clk 0:00:05]}  Ra1+ {[%clk 0:00:20]} 34. Kb2 {[%clk 0:00:02]}  Nc4+ {[%clk 0:00:17]} 0-1


[Site "https://www.chess.com"]

[Event "Titled Tuesday Blitz November 29 Late 2022"]
[White "Barbot, Pierre"]
[Black "Yoo, Christopher Woojin"]
[WhiteFideId "663727"]
[BlackFideId "30909694"]
[WhiteElo "2439"]
[BlackElo "2463"]
[Result "0-1"]
[Round "07"]
[TimeControl "180+1"]
[Date "2022.11.30"]
[WhiteClock "0:00:01"]
[BlackClock "0:00:01"]

1. d4 {[%clk 0:03:00]}  g6 {[%clk 0:03:00]} 2. Nf3 {[%clk 0:02:59]}  Bg7 {[%clk 0:03:01]} 3. Bf4 {[%clk 0:02:59]}  d6 {[%clk 0:03:01]} 4. e3 {[%clk 0:02:59]}  Nc6 {[%clk 0:03:01]} 5. h3 {[%clk 0:02:59]}  Nf6 {[%clk 0:03:00]} 6. Be2 {[%clk 0:02:59]}  O-O {[%clk 0:03:01]} 7. O-O {[%clk 0:02:59]}  Qe8 {[%clk 0:03:00]} 8. c4 {[%clk 0:02:56]}  e5 {[%clk 0:02:59]} 9. Bh2 {[%clk 0:02:55]}  Bf5 {[%clk 0:02:53]} 10. Nc3 {[%clk 0:02:51]}  h5 {[%clk 0:01:55]} 11. a3 {[%clk 0:02:50]}  e4 {[%clk 0:01:42]} 12. Nd2 {[%clk 0:02:48]}  h4 {[%clk 0:01:42]} 13. b4 {[%clk 0:02:31]}  g5 {[%clk 0:01:42]} 14. c5 {[%clk 0:02:25]}  Qd7 {[%clk 0:01:39]} 15. b5 {[%clk 0:02:04]}  Ne7 {[%clk 0:01:24]} 16. Rc1 {[%clk 0:01:55]}  dxc5 {[%clk 0:01:10]} 17. dxc5 {[%clk 0:01:56]}  Rfd8 {[%clk 0:01:09]} 18. Nc4 {[%clk 0:01:51]}  Qe6 {[%clk 0:01:09]} 19. Qb3 {[%clk 0:01:42]}  Nfd5 {[%clk 0:00:59]} 20. Nxd5 {[%clk 0:01:36]}  Nxd5 {[%clk 0:01:00]} 21. Rfd1 {[%clk 0:01:16]}  a6 {[%clk 0:00:57]} 22. b6 {[%clk 0:01:11]}  cxb6 {[%clk 0:00:57]} 23. cxb6 {[%clk 0:01:07]}  Rac8 {[%clk 0:00:55]} 24. Na5 {[%clk 0:00:38]}  Rxc1 {[%clk 0:00:43]} 25. Rxc1 {[%clk 0:00:39]}  Rd7 {[%clk 0:00:13]} 26. Bc4 {[%clk 0:00:35]}  Qxb6 {[%clk 0:00:09]} 27. Bxd5 {[%clk 0:00:34]}  Qxa5 {[%clk 0:00:10]} 28. Bxb7 {[%clk 0:00:25]}  Rc7 {[%clk 0:00:05]} 29. Bxc7 {[%clk 0:00:24]}  Qd2 {[%clk 0:00:04]} 30. Rd1 {[%clk 0:00:23]}  Qe2 {[%clk 0:00:03]} 31. Bd5 {[%clk 0:00:19]}  g4 {[%clk 0:00:04]} 32. Bxf7+ {[%clk 0:00:19]}  Kh7 {[%clk 0:00:03]} 33. Bg8+ {[%clk 0:00:19]}  Kh8 {[%clk 0:00:02]} 34. hxg4 {[%clk 0:00:16]}  Bxg4 {[%clk 0:00:01]} 35. Rc1 {[%clk 0:00:08]}  h3 {[%clk 0:00:02]} 36. gxh3 {[%clk 0:00:07]}  Bxh3 {[%clk 0:00:01]} 37. Bf7 {[%clk 0:00:05]}  Qg4+ {[%clk 0:00:01]} 38. Bg3 {[%clk 0:00:01]}  Be5 {[%clk 0:00:01]} 0-1


[Site "https://www.chess.com"]